fUST/lending_fUST_20250821
["ID","MTS","AMOUNT","RATE_DAILY","PERIOD"]
[380410815,1755748249548,-480.0,0.00022493,3]
[380410816,1755748249562,-480.0,0.00022493,3]
[380410817,1755748249578,-734.67,0.00022493,3]
[380410818,1755748249588,-480.0,0.00022493,3]
[380410819,1755748249598,-689.18,0.00022493,3]
[380410820,1755748249608,-1840.86,0.00022493,3]
[380410821,1755748249617,-463.55656892,0.00022493,3]
[380410822,1755748249626,-2539.56,0.00022493,3]
[380410823,1755748249815,-695.53,0.00022493,3]
[380410824,1755748249824,-1426.78,0.00022493,3]
[380410825,1755748249835,-2052.92,0.00022493,3]
[380410826,1755748249844,-480.0,0.00022493,3]
[380410827,1755748249854,-1617.96,0.00022493,3]
[380410828,1755748249863,-1324.04,0.00022493,3]
[380410829,1755748249873,-480.0,0.00022493,3]
[380410830,1755748249883,-480.0,0.00022493,3]
[380410831,1755748249893,-480.0,0.00022493,3]
[380410832,1755748249903,-744.68,0.00022493,3]
[380410833,1755748249913,-1481.49,0.00022493,3]
[380410834,1755748249923,-409.29638998,0.00022493,3]
[380410835,1755748249933,-2492.2,0.00022493,3]
[380410836,1755748249943,-480.0,0.00022493,3]
[380410837,1755748249953,-842.73,0.00022493,3]
[380410838,1755748249962,-585.38,0.00022493,3]
[380410839,1755748249971,-768.11,0.00022493,3]
[380410840,1755748249980,-480.0,0.00022493,3]
[380410841,1755748249990,-553.47,0.00022493,3]
[380410842,1755748249999,-480.0,0.00022493,3]
[380410843,1755748250009,-3317.57,0.00022493,3]
[380410844,1755748250019,-480.0,0.00022493,3]
[380410845,1755748250028,-615.15,0.00022493,3]
[380410846,1755748250038,-480.0,0.00022493,3]
[380410847,1755748250047,-3072.41,0.00022493,3]
[380410848,1755748250058,-695.53,0.00022493,3]
[380410849,1755748250068,-916.31,0.00022493,3]
[380410850,1755748250077,-382.37892188,0.00022493,3]
[380410851,1755748250087,-480.0,0.00022493,3]
[380410852,1755748250097,-480.0,0.00022493,3]
[380410853,1755748250107,-480.0,0.00022493,3]
[380410854,1755748250117,-480.0,0.00022493,3]
[380410855,1755748250127,-7252.87,0.00022493,3]
[380410856,1755748250135,-627.68,0.00022493,3]
[380410857,1755748250145,-480.0,0.00022493,3]
[380410858,1755748250154,-480.0,0.00022493,3]
[380410859,1755748250164,-2884.97,0.00022493,3]
[380410860,1755748250173,-4748.18,0.00022493,3]
[380410861,1755748250182,-480.0,0.00022493,3]
[380410862,1755748250191,-510.54,0.00022493,3]
[380410863,1755748250202,-402.66580166,0.00022494,3]
[380410864,1755748250211,-480.0,0.00022494,3]
[380410865,1755748250220,-480.0,0.00022494,3]
[380410866,1755748250229,-480.0,0.00022494,3]
[380410867,1755748250239,-480.0,0.00022494,3]
[380410868,1755748250248,-480.0,0.00022494,3]
[380410869,1755748250257,-480.0,0.00022494,3]
[380410870,1755748250266,-422.73946152,0.00022494,3]
[380410871,1755748250275,-480.0,0.00022494,3]
[380410872,1755748250285,-480.0,0.00022494,3]
[380410873,1755748250294,-480.0,0.00022494,3]
[380410874,1755748250303,-480.0,0.00022494,3]
[380410875,1755748250312,-480.0,0.00022494,3]
[380410876,1755748250323,-480.0,0.00022494,3]
[380410877,1755748250332,-431.53447008,0.00022494,3]
[380410878,1755748250341,-480.0,0.00022494,3]
[380410879,1755748250350,-445.23578227,0.00022494,3]
[380410880,1755748250359,-480.0,0.00022494,3]
[380410881,1755748250370,-480.0,0.00022494,3]
[380410882,1755748250379,-480.0,0.00022494,3]
[380410883,1755748250390,-480.0,0.00022494,3]
[380410884,1755748250405,-480.0,0.00022494,3]
[380410885,1755748250414,-480.0,0.00022494,3]
[380410886,1755748250423,-480.0,0.00022494,3]
[380410887,1755748250432,-480.0,0.00022494,3]
[380410888,1755748250442,-563.96,0.00022494,3]
[380410889,1755748250452,-480.0,0.00022494,3]
[380410890,1755748250461,-480.0,0.00022494,3]
[380410891,1755748250471,-480.0,0.00022494,3]
[380410892,1755748250480,-480.0,0.00022494,3]
[380410893,1755748250489,-480.0,0.00022494,3]
[380410894,1755748250498,-480.0,0.00022494,3]
[380410895,1755748250507,-480.0,0.00022494,3]
[380410896,1755748250516,-480.0,0.00022494,3]
[380410897,1755748250526,-480.0,0.00022494,3]
[380410898,1755748250535,-480.0,0.00022494,3]
[380410899,1755748250543,-480.0,0.00022494,3]
[380410900,1755748250552,-480.0,0.00022494,3]
[380410901,1755748250561,-480.0,0.00022494,3]
[380410902,1755748250571,-480.0,0.00022494,3]
[380410903,1755748250579,-440.87373733,0.00022494,3]
[380410904,1755748250588,-480.0,0.00022494,3]
[380410905,1755748250597,-480.0,0.00022494,3]
[380410906,1755748250607,-480.0,0.00022494,3]
[380410907,1755748250616,-480.0,0.00022494,3]
[380410908,1755748250625,-167.83271696,0.00022494,3]
[380410909,1755748250634,-480.0,0.00022494,3]
[380410910,1755748250643,-480.0,0.00022494,3]
[380410911,1755748250652,-1056.3,0.00022494,3]
[380410912,1755748250661,-480.0,0.00022494,3]
[380410913,1755748250670,-480.0,0.00022494,3]
[380410914,1755748250679,-480.0,0.00022494,3]
[380410915,1755748250688,-480.0,0.00022494,3]
[380410916,1755748250697,-480.0,0.00022494,3]
[380410917,1755748250706,-227.44748184,0.00022494,3]
[380410918,1755748250715,-549.69,0.00022494,3]
[380410919,1755748250725,-480.0,0.00022494,3]
[380410920,1755748250734,-480.0,0.00022494,3]
[380410921,1755748250743,-480.0,0.00022494,3]
[380410922,1755748250752,-480.0,0.00022494,3]
[380410923,1755748250762,-480.0,0.00022494,3]
[380410924,1755748250770,-480.0,0.00022494,3]
[380410925,1755748250779,-480.0,0.00022494,3]
[380410926,1755748250788,-672.59,0.00022494,3]
[380410927,1755748250797,-480.0,0.00022494,3]
[380410928,1755748250806,-372.84177326,0.00022494,3]
[380410929,1755748250815,-480.0,0.00022494,3]
[380410930,1755748250825,-480.0,0.00022494,3]
[380410931,1755748250834,-480.0,0.00022494,3]
[380410932,1755748250844,-480.0,0.00022494,3]
[380410933,1755748250852,-3167.79,0.00022494,3]
[380410934,1755748250861,-480.0,0.00022494,3]
[380410935,1755748250871,-480.0,0.00022494,3]
[380410936,1755748250880,-1252.19,0.00022494,3]
[380410937,1755748250889,-480.0,0.00022494,3]
[380410938,1755748250899,-480.0,0.00022494,3]
[380410939,1755748250909,-410.17317928,0.00022494,3]
[380410940,1755748250918,-522.32320555,0.00022494,3]
[380410941,1755748250930,-582.11,0.00022494,3]
[380410942,1755748250939,-480.0,0.00022494,3]
[380410943,1755748250948,-480.0,0.00022494,3]
[380410944,1755748250957,-550.07338692,0.00022494,3]
[380410945,1755748250966,-480.0,0.00022494,3]
[380410946,1755748250975,-480.0,0.00022494,3]
[380410947,1755748250984,-480.0,0.00022494,3]
[380410948,1755748250993,-480.0,0.00022494,3]
[380410949,1755748251003,-480.0,0.00022494,3]
[380410950,1755748251013,-480.0,0.00022494,3]
[380410951,1755748251022,-382.17433416,0.00022494,3]
[380410952,1755748251031,-480.0,0.00022494,3]
[380410953,1755748251041,-480.0,0.00022494,3]
[380410954,1755748251051,-480.0,0.00022494,3]
[380410955,1755748251059,-480.0,0.00022494,3]
[380410956,1755748251069,-480.0,0.00022494,3]
[380410957,1755748251078,-480.0,0.00022494,3]
[380410958,1755748251087,-218.4495468,0.00022494,3]
[380410959,1755748251097,-480.0,0.00022494,3]
[380410960,1755748251107,-480.0,0.00022494,3]
[380410961,1755748251115,-480.0,0.00022494,3]
[380410962,1755748251125,-480.0,0.00022494,3]
[380410963,1755748251135,-882.61069654,0.00022509,2]
[380410964,1755748251144,-172.6605949,0.00022568,2]
[380410965,1755748251154,-151.0,0.000226,5]
[380410966,1755748251163,-406.75316325,0.00022642,2]
[380410967,1755748251172,-49230.66958279,0.00022665,2]
[380410968,1755748251181,-2097.21,0.00022667,3]
[380410969,1755748251191,-2097.21,0.00022667,3]
[380410970,1755748251200,-2097.21,0.00022667,3]
[380410971,1755748251209,-2097.21,0.00022667,3]
[380410972,1755748251218,-2097.27251536,0.00022667,3]
[380410973,1755748251228,-370000.0,0.00022668,2]
[380410974,1755748251237,-151.0,0.00022668,7]
[380410975,1755748251246,-151.0,0.00022668,7]
[380410976,1755748251255,-151.0,0.00022668,7]
[380410977,1755748251264,-151.0,0.00022668,7]
[380410978,1755748251273,-151.0,0.00022668,7]
[380410979,1755748251282,-152.93019,0.00022668,7]
[380410980,1755748251291,-152.93019,0.00022668,7]
[380410981,1755748251301,-152.93019,0.00022668,7]
[380410982,1755748251310,-152.93019,0.00022668,7]
[380410983,1755748251320,-151.0,0.00022668,7]
[380410984,1755748251331,-151.0,0.00022668,7]
[380410985,1755748251340,-151.0,0.00022668,7]
[380410986,1755748251350,-153.250436,0.00022668,7]
[380410987,1755748251359,-151.0,0.00022668,7]
[380410988,1755748251369,-151.0,0.00022668,7]
[380410989,1755748251378,-151.0,0.00022668,7]
[380410990,1755748251387,-151.0,0.00022668,7]
[380410991,1755748251397,-151.0,0.00022668,7]
[380410992,1755748251407,-151.0,0.00022668,7]
[380410993,1755748251416,-151.0,0.00022668,7]
[380410994,1755748251426,-353.523331,0.00022668,7]
[380410995,1755748251434,-353.523331,0.00022668,7]
[380410996,1755748251443,-353.523331,0.00022668,7]
[380410997,1755748251453,-154.345193,0.00022668,7]
[380410998,1755748251462,-353.523331,0.00022668,7]
[380410999,1755748251471,-153.251458,0.00022668,7]
[380411000,1755748251480,-153.251458,0.00022668,7]
[380411001,1755748251490,-153.630477,0.00022668,7]
[380411002,1755748251499,-153.251458,0.00022668,7]
[380411003,1755748251508,-153.251458,0.00022668,7]
[380411004,1755748251517,-151.0,0.00022668,7]
[380411005,1755748251527,-151.0,0.00022668,7]
[380411006,1755748251536,-151.0,0.00022668,7]
[380411007,1755748251545,-152.661076,0.00022668,7]
[380411008,1755748251554,-151.0,0.00022668,7]
[380411009,1755748251563,-151.0,0.00022668,7]
[380411010,1755748251572,-151.0,0.00022668,7]
[380411011,1755748251582,-151.0,0.00022668,7]
[380411012,1755748251591,-152.33359,0.00022668,7]
[380411013,1755748251601,-152.33359,0.00022668,7]
[380411014,1755748251610,-152.33359,0.00022668,7]
[380411015,1755748251619,-152.33359,0.00022668,7]
[380411016,1755748251629,-641.501228,0.00022668,7]
[380411017,1755748251638,-641.501228,0.00022668,7]
[380411018,1755748251647,-641.501228,0.00022668,7]
[380411019,1755748251656,-151.0,0.00022668,7]
[380411020,1755748251666,-641.501228,0.00022668,7]
[380411021,1755748251675,-151.0,0.00022668,7]
[380411022,1755748251684,-151.0,0.00022668,7]
[380411023,1755748251693,-151.0,0.00022668,7]
[380411024,1755748251703,-151.335566,0.00022668,7]
[380411025,1755748251712,-151.335566,0.00022668,7]
[380411026,1755748251721,-152.365118,0.00022668,7]
[380411027,1755748251730,-151.335566,0.00022668,7]
[380411028,1755748251739,-151.335566,0.00022668,7]
[380411029,1755748251749,-500.0,0.00022673,2]
[380411030,1755748251757,-500.0,0.00022673,2]
[380411031,1755748251767,-500.0,0.00022673,2]
[380411032,1755748251776,-500.0,0.00022673,2]
[380411033,1755748251784,-281.02325921,0.00022673,2]
[380411034,1755748251794,-500.0,0.00022673,2]
[380411035,1755748251803,-500.0,0.00022673,2]
[380411036,1755748251812,-207.35869563,0.00022673,2]
[380411037,1755748251821,-500.0,0.00022673,2]
[380411038,1755748251830,-500.0,0.00022673,2]
[380411039,1755748251840,-500.0,0.00022673,2]
[380411040,1755748251849,-500.0,0.00022673,2]
[380411041,1755748251858,-500.0,0.00022673,2]
[380411042,1755748251867,-882.61069654,0.00022704,2]
[380411043,1755748251877,-380.74792421,0.00022706,2]
[380411044,1755748251886,-6839.3798043,0.00022733,2]
[380411045,1755748251895,-480.0,0.00022765,3]
[380411046,1755748251905,-737.23,0.00022765,3]
[380411047,1755748251914,-480.0,0.00022765,3]
[380411048,1755748251923,-2701.47,0.00022765,3]
[380411049,1755748251932,-594.33,0.00022765,3]
[380411050,1755748251941,-480.0,0.00022765,2]
[380411051,1755748251950,-480.0,0.00022765,3]
[380411052,1755748252060,-239.03965046,0.00022766,3]
[380411053,1755748252077,-480.0,0.00022766,3]
[380411054,1755748252086,-480.0,0.00022766,3]
[380411055,1755748252095,-480.0,0.00022766,3]
[380411056,1755748252104,-480.0,0.00022766,3]
[380411057,1755748252114,-480.0,0.00022766,3]
[380411058,1755748252123,-480.0,0.00022766,3]
[380411059,1755748252133,-875.86,0.00022766,3]
[380411060,1755748252143,-480.0,0.00022766,3]
[380411061,1755748252152,-170.390249,0.00022766,3]
[380411062,1755748252162,-482.24031492,0.00022766,3]
[380411063,1755748252171,-480.0,0.00022766,3]
[380411064,1755748252181,-480.0,0.00022766,3]
[380411065,1755748252190,-480.0,0.00022766,3]
[380411066,1755748252199,-480.0,0.00022766,3]
[380411067,1755748252209,-2638.08,0.00022766,3]
[380411068,1755748252218,-480.0,0.00022766,3]
[380411069,1755748252227,-3300.14,0.00022766,3]
[380411070,1755748252238,-593.7,0.00022766,3]
[380411071,1755748252247,-480.0,0.00022766,3]
[380411072,1755748252257,-480.0,0.00022766,3]
[380411073,1755748252266,-351.85666343,0.00022766,3]
[380411074,1755748252276,-480.0,0.00022766,3]
[380411075,1755748252285,-480.0,0.00022766,3]
[380411076,1755748252295,-453.15940019,0.00022766,3]
[380411077,1755748252304,-480.0,0.00022766,3]
[380411078,1755748252313,-480.0,0.00022766,3]
[380411079,1755748252325,-895.67,0.00022766,3]
[380411080,1755748252334,-1399.72,0.00022766,3]
[380411081,1755748252344,-480.0,0.00022766,3]
[380411082,1755748252353,-480.0,0.00022766,3]
[380411083,1755748252363,-480.0,0.00022766,3]
[380411084,1755748252373,-480.0,0.00022766,3]
[380411085,1755748252382,-480.0,0.00022766,3]
[380411086,1755748252392,-480.0,0.00022766,3]
[380411087,1755748252405,-532.29,0.00022766,3]
[380411088,1755748252415,-480.0,0.00022766,3]
[380411089,1755748252424,-480.0,0.00022766,3]
[380411090,1755748252434,-480.0,0.00022766,3]
[380411091,1755748252443,-480.0,0.00022766,3]
[380411092,1755748252453,-481.95038806,0.00022766,3]
[380411093,1755748252463,-480.0,0.00022766,3]
[380411094,1755748252472,-480.0,0.00022766,3]
[380411095,1755748252481,-480.0,0.00022766,3]
[380411096,1755748252491,-480.0,0.00022766,3]
[380411097,1755748252500,-480.0,0.00022766,3]
[380411098,1755748252509,-384.92623882,0.00022766,3]
[380411099,1755748252518,-5447.78,0.00022766,3]
[380411100,1755748252527,-674.62,0.00022766,3]
[380411101,1755748252537,-480.0,0.00022766,3]
[380411102,1755748252546,-480.0,0.00022766,3]
[380411103,1755748252555,-480.0,0.00022766,3]
[380411104,1755748252564,-480.0,0.00022766,3]
[380411105,1755748252573,-1783.52,0.00022766,3]
[380411106,1755748252582,-480.0,0.00022766,3]
[380411107,1755748252592,-480.0,0.00022766,3]
[380411108,1755748252601,-1629.2,0.00022766,3]
[380411109,1755748252611,-480.0,0.00022766,3]
[380411110,1755748252620,-3702.12,0.00022766,3]
[380411111,1755748252629,-480.0,0.00022766,3]
[380411112,1755748252638,-480.0,0.00022766,3]
[380411113,1755748252647,-797.92,0.00022766,3]
[380411114,1755748252657,-480.0,0.00022766,3]
[380411115,1755748252666,-480.0,0.00022766,3]
[380411116,1755748252675,-1864.22,0.00022766,3]
[380411117,1755748252684,-951.75,0.00022766,3]
[380411118,1755748252693,-648.42,0.00022766,3]
[380411119,1755748252703,-2075.22,0.00022766,3]
[380411120,1755748252712,-480.0,0.00022766,3]
[380411121,1755748252721,-480.0,0.00022766,3]
[380411122,1755748252730,-480.0,0.00022766,3]
[380411123,1755748252739,-480.0,0.00022766,3]
[380411124,1755748252748,-1553.46,0.00022766,3]
[380411125,1755748252757,-480.0,0.00022766,3]
[380411126,1755748252767,-480.0,0.00022766,3]
[380411127,1755748252776,-647.85,0.00022766,3]
[380411128,1755748252785,-480.0,0.00022766,3]
[380411129,1755748252794,-1178.38,0.00022766,3]
[380411130,1755748252803,-480.0,0.00022766,3]
[380411131,1755748252811,-480.0,0.00022766,3]
[380411132,1755748252820,-480.0,0.00022766,3]
[380411133,1755748252830,-991.42,0.00022766,3]
[380411134,1755748252839,-1016.85,0.00022766,3]
[380411135,1755748252848,-1057.89,0.00022766,3]
[380411136,1755748252858,-480.0,0.00022766,3]
[380411137,1755748252867,-1512.12,0.00022766,3]
[380411138,1755748252877,-431.70393868,0.00022766,3]
[380411139,1755748252886,-564.0,0.00022766,3]
[380411140,1755748252896,-480.0,0.00022766,3]
[380411141,1755748252905,-480.0,0.00022767,3]
[380411142,1755748252915,-480.0,0.00022767,3]
[380411143,1755748252924,-480.0,0.00022767,3]
[380411144,1755748252934,-527.95613671,0.00022767,3]
[380411145,1755748252943,-499.92886258,0.00022767,3]
[380411146,1755748252953,-480.0,0.00022767,3]
[380411147,1755748252962,-480.0,0.00022767,3]
[380411148,1755748252972,-480.0,0.00022767,3]
[380411149,1755748252981,-480.0,0.00022767,3]
[380411150,1755748252991,-480.0,0.00022767,3]
[380411151,1755748253002,-480.0,0.00022767,3]
[380411152,1755748253012,-559.05,0.00022767,3]
[380411153,1755748253022,-807.92,0.00022767,3]
[380411154,1755748253031,-394.88196855,0.00022767,3]
[380411155,1755748253040,-480.0,0.00022767,3]
[380411156,1755748253051,-480.0,0.00022767,3]
[380411157,1755748253060,-793.66,0.00022767,3]
[380411158,1755748253070,-1428.7,0.00022767,3]
[380411159,1755748253079,-480.0,0.00022767,3]
[380411160,1755748253088,-480.0,0.00022767,3]
[380411161,1755748253097,-480.0,0.00022767,3]
[380411162,1755748253106,-1796.97,0.00022767,3]
[380411163,1755748253115,-480.0,0.00022767,3]
[380411164,1755748253126,-480.0,0.00022767,3]
[380411165,1755748253136,-480.0,0.00022767,3]
[380411166,1755748253145,-523.51,0.00022767,3]
[380411167,1755748253154,-480.0,0.00022767,3]
[380411168,1755748253164,-480.0,0.00022767,3]
[380411169,1755748253173,-480.0,0.00022767,3]
[380411170,1755748253182,-480.0,0.00022767,3]
[380411171,1755748253191,-480.89504877,0.00022767,3]
[380411172,1755748253201,-715.03,0.00022767,3]
[380411173,1755748253210,-480.0,0.00022767,3]
[380411174,1755748253220,-480.0,0.00022767,3]
[380411175,1755748253229,-480.0,0.00022767,3]
[380411176,1755748253238,-480.0,0.00022767,3]
[380411177,1755748253247,-480.0,0.00022767,3]
[380411178,1755748253256,-480.0,0.00022767,3]
[380411179,1755748253266,-858.71,0.00022767,3]
[380411180,1755748253276,-480.0,0.00022767,3]
[380411181,1755748253286,-480.0,0.00022767,3]
[380411182,1755748253295,-480.0,0.00022767,3]
[380411183,1755748253305,-480.0,0.00022767,3]
[380411184,1755748253315,-480.0,0.00022767,3]
[380411185,1755748253328,-2615.91,0.00022767,3]
[380411186,1755748253338,-333.56644527,0.00022767,3]
[380411187,1755748253347,-480.0,0.00022767,3]
[380411188,1755748253356,-480.0,0.00022767,3]
[380411189,1755748253367,-480.0,0.00022767,3]
[380411190,1755748253376,-480.0,0.00022767,3]
[380411191,1755748253386,-480.0,0.00022767,3]
[380411192,1755748253395,-480.0,0.00022767,3]
[380411193,1755748253405,-1149.36,0.00022767,3]
[380411194,1755748253415,-1236.19,0.00022767,3]
[380411195,1755748253425,-915.11,0.00022767,3]
[380411196,1755748253434,-368.72259093,0.00022767,3]
[380411197,1755748253443,-480.0,0.00022767,3]
[380411198,1755748253454,-480.0,0.00022767,3]
[380411199,1755748253463,-480.0,0.00022767,3]
[380411200,1755748253473,-577.4,0.00022767,3]
[380411201,1755748253482,-480.0,0.00022767,3]
[380411202,1755748253491,-184.92992818,0.00022767,3]
[380411203,1755748253501,-2561.11,0.00022767,3]
[380411204,1755748253510,-480.0,0.00022767,3]
[380411205,1755748253520,-409.31398676,0.00022767,3]
[380411206,1755748253529,-480.0,0.00022767,3]
[380411207,1755748253539,-480.0,0.00022767,3]
[380411208,1755748253548,-1005.05,0.00022767,3]
[380411209,1755748253558,-480.0,0.00022767,3]
[380411210,1755748253567,-941.12,0.00022767,3]
[380411211,1755748253576,-892.24,0.00022767,3]
[380411212,1755748253586,-480.0,0.00022767,3]
[380411213,1755748253595,-480.0,0.00022767,3]
[380411214,1755748253605,-480.0,0.00022767,3]
[380411215,1755748253614,-422.01998779,0.00022767,3]
[380411216,1755748253623,-480.0,0.00022767,3]
[380411217,1755748253632,-2443.51,0.00022767,3]
[380411218,1755748253642,-480.0,0.00022767,3]
[380411219,1755748253651,-480.0,0.00022767,3]
[380411220,1755748253661,-480.0,0.00022767,3]
[380411221,1755748253671,-480.0,0.00022767,3]
[380411222,1755748253680,-480.0,0.00022767,3]
[380411223,1755748253690,-480.0,0.00022767,3]
[380411224,1755748253701,-480.0,0.00022767,3]
[380411225,1755748253710,-480.0,0.00022767,3]
[380411226,1755748253722,-887.42,0.00022767,3]
[380411227,1755748253731,-384.67132836,0.00022767,3]
[380411228,1755748253740,-460.96332904,0.00022767,3]
[380411229,1755748253750,-480.0,0.00022767,3]
[380411230,1755748253759,-480.0,0.00022767,3]
[380411231,1755748253768,-480.0,0.00022767,3]
[380411232,1755748253778,-480.0,0.00022767,3]
[380411233,1755748253787,-5229.65,0.00022767,3]
[380411234,1755748253797,-480.0,0.00022767,3]
[380411235,1755748253807,-480.0,0.00022767,3]
[380411236,1755748253816,-1030.77,0.00022767,3]
[380411237,1755748253826,-540.71,0.00022767,3]
[380411238,1755748253836,-480.0,0.00022767,3]
[380411239,1755748253846,-3009.74,0.00022767,3]
[380411240,1755748253855,-480.0,0.00022767,3]
[380411241,1755748253865,-542.96,0.00022767,3]
[380411242,1755748253875,-480.0,0.00022767,3]
[380411243,1755748253884,-480.0,0.00022767,3]
[380411244,1755748253894,-480.0,0.00022767,3]
[380411245,1755748253903,-592.05,0.00022767,3]
[380411246,1755748253914,-480.0,0.00022767,3]
[380411247,1755748253924,-1089.38,0.00022767,3]
[380411248,1755748253933,-480.0,0.00022767,3]
[380411249,1755748253943,-480.0,0.00022767,3]
[380411250,1755748253954,-5611.64,0.00022767,3]
[380411251,1755748253963,-677.02,0.00022767,3]
[380411252,1755748253973,-480.0,0.00022767,3]
[380411253,1755748253983,-480.0,0.00022767,3]
[380411254,1755748253992,-480.0,0.00022767,3]
[380411255,1755748254001,-480.0,0.00022767,3]
[380411256,1755748254010,-734.67,0.00022767,3]
[380411257,1755748254020,-480.0,0.00022767,3]
[380411258,1755748254029,-689.18,0.00022767,3]
[380411259,1755748254039,-1840.86,0.00022767,3]
[380411260,1755748254048,-2539.56,0.00022767,3]
[380411261,1755748254057,-695.53,0.00022767,3]
[380411262,1755748254067,-1426.78,0.00022767,3]
[380411263,1755748254168,-2052.92,0.00022767,3]
[380411264,1755748254189,-480.0,0.00022767,3]
[380411265,1755748254200,-1617.96,0.00022767,3]
[380411266,1755748254209,-1324.04,0.00022767,3]
[380411267,1755748254220,-480.0,0.00022767,3]
[380411268,1755748254229,-480.0,0.00022767,3]
[380411269,1755748254239,-480.0,0.00022767,3]
[380411270,1755748254248,-744.68,0.00022767,3]
[380411271,1755748254260,-1481.49,0.00022767,3]
[380411272,1755748254270,-2492.2,0.00022767,3]
[380411273,1755748254279,-480.0,0.00022767,3]
[380411274,1755748254289,-842.73,0.00022767,3]
[380411275,1755748254298,-585.38,0.00022767,3]
[380411276,1755748254307,-768.11,0.00022767,3]
[380411277,1755748254317,-480.0,0.00022767,3]
[380411278,1755748254331,-553.47,0.00022767,3]
[380411279,1755748254340,-480.0,0.00022767,3]
[380411280,1755748254349,-3317.57,0.00022767,3]
[380411281,1755748254358,-480.0,0.00022767,3]
[380411282,1755748254370,-615.15,0.00022767,3]
[380411283,1755748254379,-422.92247509,0.00022767,3]
[380411284,1755748254388,-3072.41,0.00022767,3]
[380411285,1755748254398,-695.53,0.00022767,3]
[380411286,1755748254407,-916.31,0.00022767,3]
[380411287,1755748254417,-480.0,0.00022767,3]
[380411288,1755748254426,-480.0,0.00022767,3]
[380411289,1755748254436,-480.0,0.00022767,3]
[380411290,1755748254445,-480.0,0.00022767,3]
[380411291,1755748254457,-7252.87,0.00022767,3]
[380411292,1755748254467,-627.68,0.00022767,3]
[380411293,1755748254476,-480.0,0.00022767,3]
[380411294,1755748254485,-480.0,0.00022767,3]
[380411295,1755748254495,-2884.97,0.00022767,3]
[380411296,1755748254511,-4748.18,0.00022767,3]
[380411297,1755748254531,-480.0,0.00022767,3]
[380411298,1755748254541,-510.54,0.00022767,3]
[380411299,1755748254550,-444.87256664,0.00022768,3]
[380411300,1755748254560,-480.0,0.00022768,3]
[380411301,1755748254569,-461.35767528,0.00022768,3]
[380411302,1755748254579,-441.58676049,0.00022768,3]
[380411303,1755748254589,-480.0,0.00022768,3]
[380411304,1755748254598,-480.0,0.00022768,3]
[380411305,1755748254608,-480.0,0.00022768,3]
[380411306,1755748254618,-480.0,0.00022768,3]
[380411307,1755748254627,-479.99889553,0.00022768,3]
[380411308,1755748254637,-480.0,0.00022768,3]
[380411309,1755748254647,-480.0,0.00022768,3]
[380411310,1755748254656,-480.0,0.00022768,3]
[380411311,1755748254666,-480.0,0.00022768,3]
[380411312,1755748254676,-480.0,0.00022768,3]
[380411313,1755748254686,-464.98051541,0.00022768,3]
[380411314,1755748254696,-480.0,0.00022768,3]